bitfinex-derivatives/quotes_ETHF0:USTF0_20251117
["timestamp","ask_amount","ask_price","bid_price","bid_amount"]
[1763406907732,0.00496589,3019.8,3019.7,0.6691]
[1763406908326,0.00496589,3019.8,3019.7,1.559475]
[1763406908731,0.00496589,3019.8,3019.7,0.6691]
[1763406908926,0.00496589,3019.8,3019.6,0.890375]
[1763406909130,0.00496589,3019.8,3019.3,4.098175]
[1763406909933,0.00496589,3019.8,3019.7,0.6691]
[1763406910135,0.00496589,3019.8,3019.7,1.559475]
[1763406910638,0.00496589,3019.8,3019.7,4.767275]
[1763406910928,3.2078,3020.5,3019.8,0.4225]
[1763406911136,3.2078,3020.5,3019.8,1.85030409]
[1763406911630,3.2078,3020.1,3019.8,0.4225]
[1763406912433,3.2078,3020.1,3020.0,0.6691]
[1763406913131,3.2078,3020.1,3019.8,0.4225]
[1763406913329,3.2078,3020.1,3019.7,0.89082409]
[1763406913330,0.5722,3019.9,3019.7,0.89082409]
[1763406913531,0.5722,3019.9,3019.6,0.00496589]
[1763406913532,0.5722,3019.8,3019.6,0.89578998]
[1763406913838,0.5722,3019.8,3019.6,0.00496589]
[1763406914032,3.2078,3020.1,3019.8,0.4225]
[1763406916033,3.2078,3020.1,3020.0,0.6691]
[1763406916445,0.00496589,3020.3,3020.2,0.6691]
[1763406916927,0.00496589,3020.3,3019.9,3.2078]
[1763406917432,0.00496589,3020.3,3020.2,0.6691]
[1763406918737,0.00496589,3020.3,3019.9,3.2078]
[1763406918738,0.00496589,3020.3,3020.0,1.1859047]
[1763406918937,0.00496589,3020.3,3020.0,0.89228827]
[1763406919136,0.00496589,3020.3,3019.9,3.2078]
[1763406919137,0.00496589,3020.3,3020.2,0.6657]
[1763406919341,0.4247,3020.2,3020.1,0.89228827]
[1763406919532,0.00496589,3020.3,3020.0,0.89228827]
[1763406919839,0.00496589,3020.3,3020.1,0.89228827]
[1763406920335,0.00496589,3020.3,3020.0,0.89228827]
[1763406920529,0.00496589,3020.3,3020.2,0.6657]
[1763406920732,0.00496589,3020.3,3020.0,0.89228827]
[1763406921127,0.4247,3020.0,3019.9,0.89228827]
[1763406923140,0.4247,3019.9,3019.8,0.89333099]
[1763406923328,3.2078,3020.2,3019.6,1.19087059]
[1763406923530,3.2078,3020.2,3019.9,0.89332517]
[1763406923731,0.4247,3019.9,3019.8,0.89332517]
[1763406923932,3.2078,3020.2,3019.8,0.89332517]
[1763406924238,3.2078,3020.2,3019.9,0.89332517]
[1763406924838,0.4247,3020.0,3019.9,0.89332517]
[1763406925241,0.4247,3019.9,3019.8,0.89332517]
[1763406925644,3.2078,3020.2,3020.1,0.6657]
[1763406926441,3.2078,3020.2,3020.0,0.392]
[1763406926442,0.00496589,3020.3,3020.2,0.6657]
[1763406926833,0.00496589,3020.3,3020.0,1.28529433]
[1763406927039,3.2078,3020.2,3020.0,1.28529433]
[1763406927635,3.2078,3020.2,3020.1,0.6422]
[1763406927835,0.00496589,3020.3,3020.2,0.6422]
[1763406928237,0.00496589,3020.3,3020.2,1.53549433]
[1763406928443,0.00496589,3020.3,3020.2,0.6422]
[1763406928939,1.1642024,3021.2,3020.6,0.6422]
[1763406928940,3.2078,3021.1,3020.6,0.6422]
[1763406929141,3.2078,3021.1,3021.0,1.0059]
[1763406929544,3.2078,3021.1,3021.0,0.3637]
[1763406929740,3.2078,3021.1,3020.6,0.89300869]
[1763406930247,0.00846732,3021.2,3020.4,1.1859047]
[1763406930248,0.368,3020.5,3020.4,0.89300869]
[1763406930542,3.2078,3020.7,3020.1,0.89300869]
[1763406930738,3.2078,3020.3,3020.2,0.6422]
[1763406930938,3.2078,3020.3,3020.1,0.89300869]
[1763406931241,0.368,3020.2,3020.0,0.392]
[1763406931438,3.2078,3020.3,3020.2,0.6422]
[1763406931750,1.16070097,3020.9,3020.5,0.3637]
[1763406931751,3.2078,3020.9,3020.5,0.3637]
[1763406932141,3.2078,3020.9,3020.8,0.6422]
[1763406932343,3.5758,3020.9,3020.5,0.3637]
[1763406932737,0.368,3020.4,3020.3,0.89261959]
[1763406932937,3.2078,3020.5,3020.3,0.89261959]
[1763406933243,3.2078,3020.5,3020.1,4.10041959]
[1763406933449,0.368,3020.2,3020.1,4.10041959]
[1763406933642,0.368,3020.0,3019.9,0.89261959]
[1763406933841,3.2078,3020.0,3019.9,1.53481959]
[1763406934940,3.2078,3020.0,3019.9,0.6422]
[1763406935147,3.2078,3020.0,3019.9,1.53481959]
[1763406935543,3.2078,3020.4,3020.0,0.3637]
[1763406935744,3.2078,3020.4,3020.0,1.25631959]
[1763406936449,0.368,3020.0,3019.9,0.89261959]
[1763406936653,0.368,3019.8,3019.7,0.89261959]
[1763406936960,3.2078,3020.0,3019.7,0.89261959]
[1763406937550,3.2078,3020.4,3020.0,0.3637]
[1763406938049,3.2078,3020.4,3020.0,1.25631959]
[1763406938454,3.2078,3020.4,3020.1,0.89261959]
[1763406939143,3.2078,3020.4,3020.0,1.25631959]
[1763406939348,3.2078,3020.4,3020.3,0.6422]
[1763406940148,3.5758,3020.4,3020.1,0.89261959]
[1763406940350,3.5758,3020.4,3020.2,0.89261959]
[1763406940551,0.368,3020.2,3020.1,0.89261959]
[1763406941153,0.368,3020.2,3020.0,1.25631959]
[1763406941749,3.2078,3020.4,3020.0,1.25631959]
[1763406941951,0.368,3020.1,3020.0,1.25631959]
[1763406942456,0.368,3020.1,3020.0,0.89261959]
[1763406943053,0.368,3020.0,3019.8,0.89327679]
[1763406943252,0.368,3019.9,3019.8,0.89327679]
[1763406943453,3.2078,3020.0,3019.8,0.89327679]
[1763406943653,0.368,3019.9,3019.8,0.89327679]
[1763406944356,0.368,3019.9,3019.6,0.00496589]
[1763406944357,0.368,3019.7,3019.6,0.00496589]
[1763406946149,0.368,3019.1,3019.0,0.36616322]
[1763406946355,3.2078,3019.3,3019.0,0.36616322]
[1763406946857,0.3631,3019.1,3019.0,0.00246322]
[1763406947244,3.2078,3019.3,3019.0,1.00836322]
[1763406947549,3.2078,3019.3,3019.0,0.00246322]
[1763406947550,0.3631,3019.1,3019.0,0.00246322]
[1763406948052,0.3631,3019.1,3019.0,0.36616322]
[1763406948355,3.2078,3019.3,3019.2,0.6422]
[1763406948549,3.5709,3019.3,3019.0,0.36616322]
[1763406948946,0.3631,3019.1,3019.0,0.00246322]
[1763406950049,3.2078,3019.3,3018.1,0.89327679]
[1763406950050,0.3556,3018.3,3018.1,0.89327679]
[1763406950555,3.2078,3018.7,3018.0,0.3637]
[1763406950949,3.2078,3018.7,3018.5,0.3637]
[1763406951149,0.3556,3018.6,3018.5,0.3637]
[1763406951559,3.2106287,3018.7,3018.5,0.3637]
[1763406952159,0.3556,3018.6,3018.5,0.3637]
[1763406952959,0.3556,3018.6,3018.1,3.2078]
[1763406953165,3.2106287,3018.7,3018.5,1.0059]
[1763406953658,3.2106287,3018.7,3018.6,0.6422]
[1763406953848,3.2106287,3018.7,3018.5,0.3637]
[1763406954860,3.2106287,3018.7,3018.6,0.6422]
[1763406955163,0.3556,3018.6,3018.5,0.3637]
[1763406955859,0.3556,3018.6,3018.1,3.2078]
[1763406955860,0.3556,3018.6,3018.0,0.36701914]
[1763406958063,0.3556,3018.6,3018.5,0.3345]
[1763406958965,0.3556,3018.6,3018.0,0.36701914]
[1763406959166,3.2106287,3018.7,3018.5,0.8796]
[1763406959563,3.2106287,3018.7,3018.6,0.5451]
[1763406960051,0.0028287,3018.7,3018.6,3.7529]
[1763406960661,0.1672,3018.6,3018.5,0.3345]
[1763406961464,0.1672,3018.1,3018.0,0.00331914]
[1763406962664,0.1672,3018.1,3018.0,0.33781914]
[1763406962863,0.1672,3018.1,3018.0,0.00331914]
[1763406964460,0.1672,3018.1,3018.0,1.914e-05]
[1763406965358,0.1639,3017.1,3016.7,0.89327679]
[1763406965560,0.1639,3016.6,3016.1,3.2078]
[1763406966059,3.2078,3016.4,3016.0,0.3345]
[1763406966460,3.21203477,3016.4,3016.0,0.33872599]
[1763406967165,3.21203477,3016.4,3015.7,3.2078]
[1763406967363,3.21203477,3016.4,3015.4,0.89327679]
[1763406967364,3.2078,3015.3,3013.7,1.00491252]
[1763406967559,3.2078,3014.5,3014.4,0.8796]
[1763406967767,3.2078,3014.5,3014.4,0.8556]
[1763406967962,0.00497421,3014.8,3014.7,0.5451]
[1763406968156,3.21277421,3014.8,3014.7,0.00336176]
[1763406969671,0.00497421,3014.8,3014.7,6.54846176]
[1763406970758,0.00497421,3014.8,3014.7,0.54846176]
[1763406972256,3.2078,3015.2,3015.1,0.5451]
[1763406972761,3.2078,3015.2,3015.0,0.3345]
[1763406973068,3.2078,3015.2,3014.7,0.00336176]
[1763406973266,3.2078,3014.8,3014.7,0.00336176]
[1763406973464,3.2078,3014.8,3014.7,0.54846176]
[1763406973965,3.2078,3014.8,3014.7,0.00336176]
[1763406974156,3.2078,3014.8,3013.7,3.24098235]
[1763406974157,9.2078,3014.8,3013.7,3.24098235]
[1763406974357,0.00497421,3015.3,3013.7,3.24098235]
[1763406974358,3.2078,3013.9,3013.7,0.03318235]
[1763406974565,1.4072,3013.9,3013.8,0.8796]
[1763406974769,2.33742906,3016.2,3013.8,0.8796]
[1763406974770,5.24531544,3016.9,3016.8,0.92808457]
[1763406974960,0.3387,3016.8,3016.6,3.2078]
[1763406975269,0.34129582,3016.8,3016.6,0.00374353]
[1763406975471,1.75691844,3016.7,3016.6,0.00374353]
[1763406975668,0.34129582,3016.8,3016.1,1.45462509]
[1763406975669,0.3387,3016.3,3016.1,1.45462509]
[1763406975865,0.53763,3016.2,3016.1,1.45462509]
[1763406976360,0.3387,3016.3,3016.1,1.45462509]
[1763406976560,0.3387,3016.3,3016.1,3.2106133]
[1763406976959,0.3387,3016.3,3016.1,0.0028133]
[1763406976960,0.87632,3016.3,3016.1,0.0028133]
[1763406977364,0.87632,3016.3,3016.1,3.2106133]
[1763406977365,0.3387,3016.3,3016.1,3.2106133]
[1763406977765,0.87882582,3016.8,3016.1,3.2106133]
[1763406977964,0.34129582,3016.8,3016.7,3.2078]
[1763406978164,0.87881582,3016.8,3016.7,3.2078]
[1763406978461,0.53763,3016.2,3016.1,0.0028133]
[1763406979573,0.6419,3016.3,3016.1,0.0028133]
[1763406979869,3.315,3019.0,3016.1,0.0028133]
[1763406979870,3.2078,3020.1,3017.9,3.2078]
[1763406980070,0.6419,3021.9,3020.0,3.2078]
[1763406980272,0.6419,3022.6,3020.1,13.468]
[1763406980472,0.6419,3022.6,3020.2,15.2546]
[1763406980970,0.6419,3022.6,3021.1,0.00496532]
[1763406980971,0.00496532,3021.7,3021.1,0.00496532]
[1763406981165,0.00496532,3021.7,3021.6,3.2078]
[1763406981364,0.64606498,3022.6,3021.6,6.5166]
[1763406981558,0.64606498,3022.6,3022.5,3.2078]
[1763406981758,0.64606498,3022.6,3022.5,3.21046523]
[1763406981956,0.00416498,3022.6,3022.5,12.51846523]
[1763406982162,3.2078,3023.8,3022.5,3.21046523]
[1763406982358,0.53644,3023.0,3022.9,3.2078]
[1763406982561,0.00496532,3023.2,3022.9,3.2078]
[1763406983069,0.00755538,3023.2,3022.9,3.2078]
[1763406983273,6.00755538,3023.2,3021.3,40.8]
[1763406983564,0.53675,3021.2,3021.0,3.2078]
[1763406983767,0.00493325,3021.3,3021.0,3.2078]
[1763406983974,3.2078,3021.9,3021.0,3.2078]
[1763406984171,3.2078,3021.6,3021.0,3.2078]
[1763406984364,3.21276532,3021.6,3021.0,3.21540287]
[1763406985258,3.2078,3021.2,3021.0,0.00760287]
[1763406985462,0.6419,3021.3,3021.0,0.00760287]
[1763406985665,0.00496532,3021.6,3021.0,0.00760287]
[1763406985876,0.00496532,3021.6,3021.3,3.2078]
[1763406986458,0.6419,3021.3,3021.0,0.00760287]
[1763406986861,0.00493325,3021.3,3021.0,0.00760287]
[1763406987473,0.73263325,3021.3,3021.0,0.00760287]
[1763406987670,0.00496532,3021.6,3021.0,0.00760287]
[1763406988071,3.2078,3021.5,3021.0,0.00760287]
[1763406988270,0.7277,3021.3,3021.0,0.00760287]
[1763406988973,0.73263325,3021.3,3021.0,0.00760287]
[1763406989480,0.00493325,3021.2,3021.0,0.00760287]
[1763406989671,0.73263325,3021.3,3021.0,0.00760287]
[1763406989971,0.73263325,3021.3,3020.9,3.2078]
[1763406990175,0.7277,3020.8,3018.9,3.2078]
[1763406990376,0.7277,3019.2,3018.9,3.2078]
[1763406990566,3.2078,3019.1,3018.2,3.2078]
[1763406990770,3.2078,3018.7,3018.2,3.2078]
[1763406991170,3.21174705,3018.7,3018.2,0.00342907]
[1763406991376,0.00493325,3018.3,3018.2,0.00342907]
[1763406991676,3.2078,3018.3,3017.2,3.2078]
[1763406991876,3.21273325,3018.3,3017.2,3.2078]
[1763406992478,3.21273325,3018.3,3017.6,3.74518]
[1763406992682,0.00496532,3018.1,3017.7,0.53736]
[1763406993075,0.00496532,3018.1,3017.6,3.2078]
[1763406993376,3.2078,3017.9,3017.2,0.00260865]
[1763406993683,0.00496532,3018.1,3017.5,3.2078]
[1763406993877,0.00496532,3018.1,3017.5,3.7452]
[1763406994180,0.00496532,3018.1,3017.5,3.74519]
[1763406994481,0.00496532,3018.1,3017.6,0.53738]
[1763406994683,0.00496532,3018.1,3017.5,3.2078]
[1763406995278,0.00496532,3018.1,3017.6,0.53737]
[1763406995479,0.00496532,3018.1,3017.7,0.53735]
[1763406995775,0.00496532,3018.1,3017.9,0.53732]
[1763406996688,3.2078,3018.3,3018.0,0.5373]
[1763406996875,3.21273325,3018.3,3017.5,3.2078]
[1763406997285,3.21273325,3018.3,3017.7,0.53735]
[1763406997580,3.21276532,3018.3,3017.7,0.00496532]
[1763406997883,3.21276532,3018.3,3017.7,0.54232532]
[1763406998186,3.21769857,3018.3,3017.7,0.00496532]
[1763406998780,3.2078,3017.9,3017.7,0.00496532]
[1763406999184,0.00493325,3017.8,3017.7,0.00496532]
[1763407001590,3.2078,3017.9,3017.7,0.00496532]
[1763407001783,3.2078,3017.9,3017.2,0.00260865]
[1763407001784,0.7277,3017.6,3017.2,0.00260865]
[1763407001977,3.21273325,3017.3,3015.9,3.2078]
[1763407002184,3.2078,3016.6,3015.9,3.2078]
[1763407002879,3.2078,3016.2,3015.9,0.00262764]
[1763407003080,3.21059283,3016.2,3015.9,0.54030764]
[1763407003280,3.21059283,3016.2,3015.9,0.00262764]
[1763407003788,3.21059283,3016.2,3016.0,0.53765]
[1763407004179,0.00279283,3016.2,3016.1,0.53765]
[1763407004382,3.21277379,3016.6,3016.5,0.53758]
[1763407004383,0.00497379,3016.6,3016.5,0.53758]
[1763407004583,0.00497379,3016.6,3016.5,3.74538]
[1763407004889,0.00497379,3016.6,3016.5,7.05978]
[1763407005289,3.2078,3017.5,3017.0,0.53748]
[1763407005487,3.21082675,3017.5,3017.1,0.53745]
[1763407005698,3.21576,3017.5,3017.1,0.53745]
[1763407005878,3.21576,3017.5,3016.9,3.2078]
[1763407006084,3.21576,3017.5,3017.0,0.53747]
[1763407006287,3.21576,3017.5,3016.9,0.00497379]
[1763407006790,0.00493325,3017.4,3016.9,0.00497379]
[1763407006986,0.00493325,3017.4,3017.0,0.53749]
[1763407007192,0.00493325,3017.4,3016.9,0.54247379]
[1763407007493,0.00493325,3017.3,3016.9,0.00497379]
[1763407007789,3.315,3019.9,3016.9,0.00497379]
[1763407007790,0.7277,3020.8,3018.1,3.2078]
[1763407007983,0.7277,3020.8,3020.6,0.53683]
[1763407008181,0.7277,3020.8,3020.7,3.2078]
[1763407008380,0.7277,3020.8,3018.9,41.95950528]
[1763407008592,0.7277,3020.8,3020.7,3.2078]
[1763407008891,0.73200135,3020.8,3020.7,3.21206593]
[1763407009484,0.7277,3023.2,3021.3,3.2078]
[1763407009785,0.7277,3023.2,3022.7,3.2078]
[1763407009994,0.7277,3022.2,3022.1,3.2078]
[1763407010292,0.75000127,3022.2,3022.1,3.2078]
[1763407010490,0.02560968,3022.2,3022.1,6.5166]
[1763407010682,0.00496541,3022.5,3022.4,0.53653]
[1763407010879,0.00496541,3022.5,3022.4,9.83037488]
[1763407011081,0.7277,3024.0,3022.4,9.83037488]
[1763407011082,0.7277,3024.0,3022.4,6.0]
[1763407011294,0.7277,3024.0,3023.8,3.2078]
[1763407011593,0.7277,3024.0,3022.8,3.2078]
[1763407011796,0.73181282,3024.0,3023.5,3.2078]
[1763407012887,6.73181282,3024.0,3023.5,3.2078]
[1763407013093,6.73181282,3024.0,3023.4,0.00496541]
[1763407013094,0.73181282,3024.0,3023.4,0.00496541]
[1763407013393,0.73181282,3024.0,3023.9,3.2078]
[1763407013791,0.00411282,3024.0,3023.9,3.2078]
[1763407014088,0.73181282,3024.0,3023.9,3.2078]
[1763407014684,0.73181282,3024.0,3023.4,0.00496541]
[1763407014685,6.73181282,3024.0,3023.4,0.00496541]
[1763407014886,3.2078,3023.5,3023.4,0.00496541]
[1763407015086,0.73181282,3024.0,3023.4,0.00496541]
[1763407015293,3.2078,3023.9,3023.4,0.00496541]
[1763407015699,0.73181282,3024.0,3023.4,3.21276541]
[1763407015890,0.00411282,3024.0,3023.9,3.2078]
[1763407017282,0.91071282,3024.0,3023.9,3.2078]
[1763407017493,0.91071282,3024.0,3023.4,0.00496541]
[1763407017494,0.91071282,3024.0,3023.4,3.21276541]
[1763407017887,0.91071282,3024.0,3023.8,3.2078]
[1763407017888,0.00411282,3024.0,3023.8,3.2078]
[1763407018693,0.00496541,3024.1,3023.8,7.05047]
[1763407018890,0.9066,3027.6,3023.8,7.05047]
[1763407018891,3.2078,3025.6,3024.0,0.5093]
[1763407019091,3.2078,3025.6,3024.8,3.2078]
[1763407019391,3.2078,3025.6,3024.0,0.5093]
[1763407019392,4.1144,3024.9,3023.9,3.2078]
[1763407019802,0.00496541,3024.7,3023.5,3.74413]
[1763407020000,0.00496541,3024.7,3023.4,0.00496541]
[1763407020001,0.00496541,3024.7,3024.0,3.2078]
[1763407020292,0.00496541,3024.7,3024.4,3.2078]
[1763407020596,3.2078,3026.7,3025.7,0.53594]
[1763407020795,3.2078,3026.7,3025.9,3.2078]
[1763407021194,3.2078,3026.3,3025.5,3.2078]
[1763407021695,0.9066,3025.8,3025.5,0.00351722]
[1763407021894,3.2078,3025.9,3025.6,0.0049567]
[1763407022302,0.00321209,3026.2,3025.6,0.0049567]
[1763407022997,0.00321209,3026.2,3026.1,3.2078]
[1763407023596,3.2078,3027.4,3026.1,9.2078]
[1763407023786,3.2078,3027.4,3025.6,40.8049567]
[1763407023787,3.2078,3027.4,3026.5,3.2078]
[1763407023988,3.2078,3027.4,3026.6,0.53578]
[1763407024187,3.2078,3027.9,3026.9,3.2078]
[1763407024593,3.2104493,3027.9,3027.1,0.0049567]
[1763407025195,3.2104493,3027.9,3027.3,3.2078]
[1763407025997,0.0026493,3027.9,3027.3,3.2078]
[1763407026306,3.2078,3027.8,3027.3,3.2078]
[1763407026501,3.2078,3027.8,3027.1,0.0049567]
[1763407027705,3.2078,3027.3,3027.1,0.0049567]
[1763407027902,3.2078,3027.3,3025.8,3.2078]
[1763407028202,0.9066,3025.8,3025.4,3.2078]
[1763407028402,0.9066,3025.8,3024.9,3.2078]
[1763407028794,0.9066,3025.8,3025.3,0.0049567]
[1763407028998,0.9066,3025.8,3024.9,3.2078]
[1763407029203,3.2078,3025.1,3024.3,3.2078]
[1763407029412,0.9066,3025.8,3024.3,3.2078]
[1763407029413,3.2078,3024.7,3024.3,3.2078]
[1763407030000,0.00337598,3024.7,3024.3,3.21164364]
[1763407030202,0.00337598,3024.7,3024.4,0.53617]
[1763407030407,0.00337598,3024.7,3024.3,3.21164364]
[1763407030696,0.00495669,3026.0,3024.3,3.21164364]
[1763407030697,0.00495669,3026.0,3024.4,9.3056]
[1763407030899,0.00495669,3026.0,3025.4,3.2078]
[1763407031100,4.1144,3025.8,3025.0,3.2078]
[1763407031311,4.1144,3025.8,3025.4,3.2078]
[1763407031503,0.00495669,3026.0,3025.4,3.2078]
[1763407031699,0.00495669,3026.0,3024.3,0.00384364]
[1763407031700,3.2078,3025.6,3024.9,3.2078]
[1763407031906,0.9066,3025.8,3024.3,0.00384364]
[1763407031907,3.2078,3025.4,3024.4,3.2078]
[1763407032206,3.2078,3024.8,3024.3,0.00384364]
[1763407032707,0.9066,3024.9,3024.3,0.00384364]
[1763407032905,3.2078,3025.2,3024.4,3.2078]
[1763407033107,3.2078,3025.0,3024.4,3.2078]
[1763407033308,0.9066,3024.9,3024.3,0.00384364]
[1763407034206,0.9066,3024.9,3024.4,3.2078]
[1763407034601,3.2078,3024.7,3024.2,0.0049567]
[1763407034803,3.2078,3024.3,3023.9,0.53626]
[1763407035106,0.9066,3024.9,3022.2,0.5072]
[1763407035107,0.9066,3024.9,3023.7,3.2078]
[1763407035408,0.9066,3025.8,3024.2,3.2078]
[1763407035409,3.2078,3025.2,3024.2,3.2078]
[1763407035600,3.2078,3024.5,3024.2,0.00370866]
[1763407036402,0.0049567,3024.7,3024.2,0.00370866]
[1763407036403,0.0049567,3024.7,3024.2,3.74770866]
[1763407036611,0.0049567,3024.7,3024.5,0.53615]
[1763407036802,0.0049567,3024.7,3024.6,3.2078]
[1763407038400,0.0049567,3024.7,3024.6,3.74394]
[1763407038910,0.00336869,3026.0,3024.6,9.2078]
[1763407039108,3.2078,3027.3,3026.4,0.53581]
[1763407039406,3.2078,3027.3,3026.6,3.2078]
[1763407039606,3.8568,3027.3,3026.6,3.2078]
[1763407039810,0.6539567,3027.3,3026.6,3.2127567]
[1763407040212,0.65808178,3027.3,3026.6,3.21580359]
[1763407040411,3.86588178,3027.3,3026.6,3.21580359]
[1763407041012,0.65808178,3027.3,3026.6,3.21580359]
[1763407041307,0.65808178,3027.3,3027.0,3.2078]
[1763407042013,0.65808178,3027.3,3026.7,3.2078]
[1763407042213,0.65808178,3027.3,3027.2,3.2078]
[1763407043315,0.65808178,3027.3,3026.7,3.2078]
[1763407044014,0.8318,3026.7,3026.6,0.00800359]
[1763407044207,0.8318,3026.7,3026.3,3.2078]
[1763407044615,0.8318,3026.7,3025.7,3.2078]
[1763407044616,3.2078,3026.4,3025.7,3.2078]
[1763407044801,3.2078,3026.0,3024.9,4.59784305]
[1763407045010,3.2078,3026.0,3024.9,4.25338]
[1763407045308,0.0049567,3025.8,3025.1,0.0049567]
[1763407046110,3.2078,3025.6,3025.1,0.0049567]
[1763407046712,0.0049567,3025.8,3025.1,0.0049567]
[1763407046915,0.0049567,3025.8,3025.4,3.2078]
[1763407047517,0.0049567,3025.8,3025.1,0.0049567]
[1763407047718,3.2078,3025.6,3025.1,0.0049567]
[1763407048011,0.0049567,3025.8,3025.1,0.0049567]
[1763407049011,1.15442756,3027.0,3025.1,0.0049567]
[1763407049215,0.00412508,3027.3,3027.1,0.53568]
[1763407049409,0.9066,3028.5,3027.2,4.36730528]
[1763407049605,0.9066,3028.5,3028.1,3.2078]
[1763407049803,0.9066,3028.5,3027.3,1.7389751]
[1763407049804,0.8706,3027.6,3027.3,3.2078]
[1763407050506,0.87310418,3027.6,3027.3,3.2078]
[1763407051310,0.87310418,3027.6,3027.1,0.00841921]
[1763407051813,0.87310418,3027.6,3027.3,3.2078]
[1763407053414,0.87310418,3027.6,3027.1,3.21621921]
[1763407053712,3.2078,3027.2,3027.1,1.921e-05]
[1763407054505,9.2078,3027.2,3027.1,1.921e-05]
[1763407054709,9.2078,3027.2,3026.5,3.2078]
[1763407054913,3.2078,3027.2,3026.5,3.2078]
[1763407055318,3.2078,3027.1,3026.5,3.2078]
[1763407055523,4.0784,3026.7,3026.1,3.2078]
[1763407055708,3.2078,3026.3,3026.1,0.00738949]
[1763407056020,3.2078,3026.3,3025.5,3.2078]
[1763407056416,4.0784,3026.7,3025.5,3.2078]
[1763407056814,0.0049567,3026.4,3025.9,3.2078]
[1763407057120,3.2078,3026.1,3025.8,0.0049567]
[1763407057416,3.2078,3026.1,3025.5,0.00277937]
[1763407057417,0.8706,3025.8,3025.5,0.00277937]
[1763407060324,0.8706,3025.8,3025.1,3.2078]
[1763407060325,3.2078,3025.7,3025.1,3.2078]
[1763407060524,0.8706,3025.8,3025.1,3.2078]
[1763407061011,0.0049567,3026.4,3025.5,3.2078]
[1763407061216,0.0049567,3026.4,3025.6,0.00330454]
[1763407061416,0.8706,3025.8,3025.6,0.00330454]
[1763407062525,0.0049567,3026.4,3025.6,6.00330454]
[1763407062824,0.0049567,3026.4,3026.0,3.2078]
[1763407063615,3.2078,3026.2,3025.6,0.00330454]
[1763407065420,0.0049567,3026.4,3026.0,3.2078]
[1763407065826,0.0049567,3026.4,3026.0,3.74369]
[1763407066022,0.0049567,3026.4,3026.1,0.53587]
[1763407066221,0.0049567,3026.4,3026.0,3.74368]
[1763407066626,0.0049567,3026.4,3026.0,3.2078]
[1763407067418,0.8755567,3026.4,3026.0,3.2078]
[1763407069628,3.2078,3026.1,3025.6,0.00330454]
[1763407072431,3.2078,3026.1,3024.7,0.88708422]
[1763407072432,0.5274,3024.8,3024.2,1.7389751]
[1763407072627,3.2078,3024.6,3023.4,3.2078]
[1763407072823,3.2078,3024.6,3023.8,3.2078]
[1763407073634,0.0049567,3024.5,3024.3,3.2078]
[1763407075930,0.0049567,3024.5,3023.8,3.21171641]
[1763407077439,0.0049567,3024.5,3024.2,3.2078]
[1763407078038,0.0049567,3024.5,3023.8,3.21171641]
[1763407078240,0.0049567,3024.5,3024.0,0.9241]
[1763407079048,0.0049567,3024.5,3024.2,3.2078]
[1763407079551,0.0049567,3024.5,3024.0,0.9241]
[1763407079853,3.2078,3024.2,3023.8,0.00391641]
[1763407080044,3.2127567,3024.5,3023.8,0.00391641]
[1763407080243,3.2078,3024.1,3023.8,0.00391641]
[1763407080440,3.2127567,3024.5,3023.8,0.00391641]
[1763407081056,0.0049567,3024.5,3024.4,0.53617]
[1763407081255,0.0049567,3024.5,3024.2,3.74401]
[1763407081453,0.0049567,3024.5,3024.2,3.2078]
[1763407082049,3.2127567,3024.5,3023.8,0.00391641]
[1763407082648,3.2078,3024.0,3023.8,0.00391641]
[1763407083451,3.6984,3024.0,3023.8,0.00391641]
[1763407083648,9.6984,3024.0,3023.8,1.641e-05]
[1763407083950,3.6984,3024.0,3023.8,1.641e-05]
[1763407084349,6.0,3023.9,3023.8,1.641e-05]
[1763407084854,7.17132415,3023.9,3023.8,1.641e-05]
[1763407085257,7.17132415,3023.9,3021.9,1.46072]
[1763407085258,7.17132415,3023.9,3022.2,3.2078]
[1763407085452,3.2078,3022.9,3022.2,3.2078]
[1763407085658,3.2127567,3022.9,3022.2,3.2078]
[1763407085854,0.0049567,3022.9,3022.2,3.2078]
[1763407086058,3.2078,3022.8,3022.2,3.2078]
[1763407086260,3.2078,3022.8,3022.2,3.2120619]
[1763407086458,0.0049567,3022.9,3022.2,0.0042619]
[1763407086658,3.2078,3022.4,3022.2,0.0042619]
[1763407086954,3.2078,3022.4,3020.8,3.27778879]
[1763407086955,4.26690453,3022.4,3020.6,3.2078]
[1763407087156,3.2078,3021.2,3020.6,3.2078]
[1763407087356,3.21276541,3021.2,3020.6,3.2078]
[1763407087753,3.21276541,3021.2,3020.1,3.74473]
[1763407087946,3.2078,3020.8,3020.1,0.00270798]
[1763407088146,0.00496541,3021.2,3020.1,0.00270798]
[1763407088147,3.2078,3020.4,3020.1,0.00270798]
[1763407088751,3.2078,3020.8,3020.1,0.00270798]
[1763407088954,3.2078,3020.8,3020.1,3.21050798]
[1763407089271,3.21276541,3021.2,3020.6,3.2078]
[1763407089453,3.21276541,3021.2,3020.5,3.2078]
[1763407089859,3.21276541,3021.2,3020.1,3.21050798]
[1763407090056,3.21276541,3021.2,3020.2,0.53692]
[1763407090354,3.2078,3020.6,3020.1,0.00270798]
[1763407090555,3.2078,3020.2,3020.1,0.00270798]
[1763407090755,3.21169513,3020.2,3020.1,0.00270798]
[1763407091250,0.00389513,3020.2,3020.1,0.00270798]
[1763407091446,3.21169513,3020.2,3020.1,0.00270798]
[1763407092455,0.00389513,3020.2,3020.1,0.00270798]
[1763407092656,3.2078,3021.1,3020.1,9.31310798]
[1763407092961,3.2078,3021.1,3020.6,0.53685]
[1763407093159,3.2078,3021.1,3020.4,3.74467]
[1763407093552,3.21192214,3021.1,3020.1,0.00270798]
[1763407093754,3.2078,3020.6,3020.1,0.00270798]
[1763407094064,3.2078,3021.0,3020.3,3.2078]
[1763407094564,3.2078,3021.0,3020.5,0.53686]
[1763407094760,3.2078,3021.0,3020.3,3.2078]
[1763407095362,0.00412214,3021.1,3020.7,3.2078]
[1763407095666,0.00412214,3021.1,3021.0,0.53678]
[1763407095958,3.2078,3021.8,3021.1,3.3096]
[1763407096158,3.2078,3022.8,3021.6,0.9241]
[1763407096364,3.2078,3022.8,3021.9,0.53662]